Department family,Entity,Date,Expense Type,Expense area,Supplier,Transaction number,AP Amount (�)
Department of Health,NHS Barnsley CCG,31/12/2017,Clinical&Medical-Commercial Sector,LEARNING DIFFICULTIES,ASC HEALTHCARE LTD,20069913,"44,631.43 "
Department of Health,NHS Barnsley CCG,31/12/2017,C&M-APMS Contract Value,PRC DELEGATED CO-COMMISSIONING,BARNSLEY HEALTHCARE FEDERATION,20016628,"25,652.23 "
Department of Health,NHS Barnsley CCG,31/12/2017,C&M-APMS OOH Opt Outs,PRC DELEGATED CO-COMMISSIONING,BARNSLEY HEALTHCARE FEDERATION,20016628,0.05 
Department of Health,NHS Barnsley CCG,31/12/2017,C&M-APMS Prem Actual Rent,PRC DELEGATED CO-COMMISSIONING,BARNSLEY HEALTHCARE FEDERATION,20016628,"1,310.42 "
Department of Health,NHS Barnsley CCG,31/12/2017,C&M-PMS Prem Actual Rent,PRC DELEGATED CO-COMMISSIONING,BARNSLEY HEALTHCARE FEDERATION,20016628,"1,310.42 "
Department of Health,NHS Barnsley CCG,31/12/2017,C&M-PMS QOF Aspiration,PRC DELEGATED CO-COMMISSIONING,BARNSLEY HEALTHCARE FEDERATION,20016628,"2,442.47 "
Department of Health,NHS Barnsley CCG,31/12/2017,C&M-APMS Contract Value,PRC DELEGATED CO-COMMISSIONING,BARNSLEY HEALTHCARE FEDERATION,20016630,"27,758.98 "
Department of Health,NHS Barnsley CCG,31/12/2017,C&M-APMS OOH Opt Outs,PRC DELEGATED CO-COMMISSIONING,BARNSLEY HEALTHCARE FEDERATION,20016630,11.91 
Department of Health,NHS Barnsley CCG,31/12/2017,C&M-APMS Prem Actual Rent,PRC DELEGATED CO-COMMISSIONING,BARNSLEY HEALTHCARE FEDERATION,20016630,"6,200.00 "
Department of Health,NHS Barnsley CCG,31/12/2017,C&M-APMS Prem Rates,PRC DELEGATED CO-COMMISSIONING,BARNSLEY HEALTHCARE FEDERATION,20016630,"1,444.00 "
Department of Health,NHS Barnsley CCG,31/12/2017,C&M-PMS DES Learn Dsblty Hlth Chk,PRC DELEGATED CO-COMMISSIONING,BARNSLEY HEALTHCARE FEDERATION,20016630,280.00 
Department of Health,NHS Barnsley CCG,31/12/2017,C&M-PMS Prem Actual Rent,PRC DELEGATED CO-COMMISSIONING,BARNSLEY HEALTHCARE FEDERATION,20016630,"6,200.00 "
Department of Health,NHS Barnsley CCG,31/12/2017,C&M-PMS QOF Aspiration,PRC DELEGATED CO-COMMISSIONING,BARNSLEY HEALTHCARE FEDERATION,20016630,"2,549.33 "
Department of Health,NHS Barnsley CCG,31/12/2017,C&M-APMS OOH Opt Outs,PRC DELEGATED CO-COMMISSIONING,BARNSLEY HEALTHCARE FEDERATION,20042765,"(1,464.86)"
Department of Health,NHS Barnsley CCG,31/12/2017,C&M-PMS Prem Actual Rent,PRC DELEGATED CO-COMMISSIONING,BARNSLEY HEALTHCARE FEDERATION,20042765,"(2,150.00)"
Department of Health,NHS Barnsley CCG,31/12/2017,C&M-PMS Prem Healthcentre Rent,PRC DELEGATED CO-COMMISSIONING,BARNSLEY HEALTHCARE FEDERATION,20042765,"(6,795.48)"
Department of Health,NHS Barnsley CCG,31/12/2017,ME-PMS GP Pension EEs-PMS,PRC DELEGATED CO-COMMISSIONING,BARNSLEY HEALTHCARE FEDERATION,20042765,"(9,729.82)"
Department of Health,NHS Barnsley CCG,31/12/2017,ME-PMS GP Pension ERs Adjs - PMS,PRC DELEGATED CO-COMMISSIONING,BARNSLEY HEALTHCARE FEDERATION,20042765,"(10,364.06)"
Department of Health,NHS Barnsley CCG,31/12/2017,C&M-APMS Contract Value,PRC DELEGATED CO-COMMISSIONING,BARNSLEY HEALTHCARE FEDERATION,20042766,"30,626.61 "
Department of Health,NHS Barnsley CCG,31/12/2017,C&M-APMS Prem Actual Rent,PRC DELEGATED CO-COMMISSIONING,BARNSLEY HEALTHCARE FEDERATION,20042766,"2,150.00 "
Department of Health,NHS Barnsley CCG,31/12/2017,C&M-APMS Prem Healthcentre Rent,PRC DELEGATED CO-COMMISSIONING,BARNSLEY HEALTHCARE FEDERATION,20042766,"7,057.88 "
Department of Health,NHS Barnsley CCG,31/12/2017,C&M-APMS Prem Rates,PRC DELEGATED CO-COMMISSIONING,BARNSLEY HEALTHCARE FEDERATION,20042766,478.00 
Department of Health,NHS Barnsley CCG,31/12/2017,C&M-PMS DES Minor Surgery,PRC DELEGATED CO-COMMISSIONING,BARNSLEY HEALTHCARE FEDERATION,20042766,"1,534.32 "
Department of Health,NHS Barnsley CCG,31/12/2017,C&M-PMS Prem Actual Rent,PRC DELEGATED CO-COMMISSIONING,BARNSLEY HEALTHCARE FEDERATION,20042766,"2,150.00 "
Department of Health,NHS Barnsley CCG,31/12/2017,C&M-PMS Prem Healthcentre Rent,PRC DELEGATED CO-COMMISSIONING,BARNSLEY HEALTHCARE FEDERATION,20042766,"6,795.48 "
Department of Health,NHS Barnsley CCG,31/12/2017,C&M-PMS QOF Aspiration,PRC DELEGATED CO-COMMISSIONING,BARNSLEY HEALTHCARE FEDERATION,20042766,"2,184.66 "
Department of Health,NHS Barnsley CCG,31/12/2017,Clinical&Medical-Commercial Sector,OUT OF HOURS,BARNSLEY HEALTHCARE FEDERATION,20185277,"115,909.00 "
Department of Health,NHS Barnsley CCG,31/12/2017,Miscellaneous Expenditure (L9),PCTF Revenue,BARNSLEY HEALTHCARE FEDERATION,20185285,"127,632.91 "
Department of Health,NHS Barnsley CCG,31/12/2017,C&M-PMS Contract Value,PRC DELEGATED CO-COMMISSIONING,BARNSLEY HEALTHCARE FEDERATION CIC (GOLDTHORPE),20021923,"39,914.35 "
Department of Health,NHS Barnsley CCG,31/12/2017,C&M-PMS DES Learn Dsblty Hlth Chk,PRC DELEGATED CO-COMMISSIONING,BARNSLEY HEALTHCARE FEDERATION CIC (GOLDTHORPE),20021923,140.00 
Department of Health,NHS Barnsley CCG,31/12/2017,C&M-PMS DES Minor Surgery,PRC DELEGATED CO-COMMISSIONING,BARNSLEY HEALTHCARE FEDERATION CIC (GOLDTHORPE),20021923,"1,022.88 "
Department of Health,NHS Barnsley CCG,31/12/2017,C&M-PMS Out of Hours Opt Outs,PRC DELEGATED CO-COMMISSIONING,BARNSLEY HEALTHCARE FEDERATION CIC (GOLDTHORPE),20021923,7.08 
Department of Health,NHS Barnsley CCG,31/12/2017,C&M-PMS Prem Healthcentre Rent,PRC DELEGATED CO-COMMISSIONING,BARNSLEY HEALTHCARE FEDERATION CIC (GOLDTHORPE),20021923,"11,654.20 "
Department of Health,NHS Barnsley CCG,31/12/2017,C&M-PMS QOF Aspiration,PRC DELEGATED CO-COMMISSIONING,BARNSLEY HEALTHCARE FEDERATION CIC (GOLDTHORPE),20021923,"4,628.16 "
Department of Health,NHS Barnsley CCG,31/12/2017,Hcare Srv Rec Fdtn Trust-Contract Baseline,ACUTE COMMISSIONING,BARNSLEY HOSPITAL NHS FOUNDATION TRUST,20051306,"(5,617,211.50)"
Department of Health,NHS Barnsley CCG,31/12/2017,Hcare Srv Rec Fdtn Trust-Contract Baseline,ACUTE COMMISSIONING,BARNSLEY HOSPITAL NHS FOUNDATION TRUST,20051349,"5,617,211.50 "
Department of Health,NHS Barnsley CCG,31/12/2017,Hcare Srv Rec Fdtn Trust-Non Contract,COMMISSIONING - NON ACUTE,BARNSLEY HOSPITAL NHS FOUNDATION TRUST,20165031,"29,191.00 "
Department of Health,NHS Barnsley CCG,30/11/2017,Hcare Srv Rec Fdtn Trust-CQUIN,ACUTE COMMISSIONING,BARNSLEY HOSPITAL NHS FOUNDATION TRUST,19884449,"8,678.00 "
Department of Health,NHS Barnsley CCG,30/11/2017,Hcare Srv Rec Fdtn Trust-Contract Baseline,ACUTE COMMISSIONING,BARNSLEY HOSPITAL NHS FOUNDATION TRUST,19884449,"562,297.00 "
Department of Health,NHS Barnsley CCG,30/11/2017,Hcare Srv Rec Fdtn Trust-CQUIN,ACUTE COMMISSIONING,BARNSLEY HOSPITAL NHS FOUNDATION TRUST,19884450,"104,319.00 "
Department of Health,NHS Barnsley CCG,30/11/2017,Hcare Srv Rec Fdtn Trust-Contract Baseline,ACUTE COMMISSIONING,BARNSLEY HOSPITAL NHS FOUNDATION TRUST,19884450,"5,512,892.50 "
Department of Health,NHS Barnsley CCG,30/11/2017,Hcare Srv Rec Fdtn Trust-CQUIN,ACUTE COMMISSIONING,BARNSLEY HOSPITAL NHS FOUNDATION TRUST,19884451,"104,319.00 "
Department of Health,NHS Barnsley CCG,30/11/2017,Hcare Srv Rec Fdtn Trust-Contract Baseline,ACUTE COMMISSIONING,BARNSLEY HOSPITAL NHS FOUNDATION TRUST,19884451,"5,512,892.50 "
Department of Health,NHS Barnsley CCG,31/12/2017,Cont Care- Prior Year Payments,CHC ADULT JOINT FUNDED,BARNSLEY METROPOLITAN BOROUGH COUNCIL,19940739,"1,226.95 "
Department of Health,NHS Barnsley CCG,31/12/2017,Cont Care-Learning Disab(<65),CHC ADULT JOINT FUNDED,BARNSLEY METROPOLITAN BOROUGH COUNCIL,19940739,"36,099.30 "
Department of Health,NHS Barnsley CCG,31/12/2017,Cont Care- Children,CHC CHILD PERS HLTH BUD,BARNSLEY METROPOLITAN BOROUGH COUNCIL,20092983,"119,158.83 "
Department of Health,NHS Barnsley CCG,31/12/2017,Cont Care- Children,CHC CHILDREN,BARNSLEY METROPOLITAN BOROUGH COUNCIL,20093237,"44,280.59 "
Department of Health,NHS Barnsley CCG,31/12/2017,Cont Care- Children,CHC CHILDREN,BARNSLEY METROPOLITAN BOROUGH COUNCIL,20093245,"44,280.59 "
Department of Health,NHS Barnsley CCG,31/12/2017,Clinical&Medical-Othe Public Sector,Learning Difficulties - S117,BARNSLEY METROPOLITAN BOROUGH COUNCIL,20160440,"(63,946.43)"
Department of Health,NHS Barnsley CCG,31/12/2017,Clinical&Medical-Othe Public Sector,Learning Difficulties - S117,BARNSLEY METROPOLITAN BOROUGH COUNCIL,20160444,"(62,706.00)"
Department of Health,NHS Barnsley CCG,31/12/2017,Clinical&Medical-Othe Public Sector,Mental Health Services - S117 Mental Health,BARNSLEY METROPOLITAN BOROUGH COUNCIL,20160449,"(59,895.35)"
Department of Health,NHS Barnsley CCG,31/12/2017,Clinical&Medical-Othe Public Sector,Mental Health Services - S117 Mental Health,BARNSLEY METROPOLITAN BOROUGH COUNCIL,20160460,"(65,441.99)"
Department of Health,NHS Barnsley CCG,31/12/2017,Clinical&Medical-Othe Public Sector,Learning Difficulties - S117,BARNSLEY METROPOLITAN BOROUGH COUNCIL,20160463,"(61,342.85)"
Department of Health,NHS Barnsley CCG,31/12/2017,Clinical&Medical-Othe Public Sector,Learning Difficulties - S117,BARNSLEY METROPOLITAN BOROUGH COUNCIL,20160469,"(66,550.00)"
Department of Health,NHS Barnsley CCG,31/12/2017,Clinical&Medical-Othe Public Sector,Learning Difficulties - S117,BARNSLEY METROPOLITAN BOROUGH COUNCIL,20160503,"(44,219.87)"
Department of Health,NHS Barnsley CCG,31/12/2017,Clinical&Medical-Othe Public Sector,Learning Difficulties - S117,BARNSLEY METROPOLITAN BOROUGH COUNCIL,20160507,"(45,738.41)"
Department of Health,NHS Barnsley CCG,31/12/2017,Clinical&Medical-Othe Public Sector,Learning Difficulties - S117,BARNSLEY METROPOLITAN BOROUGH COUNCIL,20160513,"(45,019.48)"
Department of Health,NHS Barnsley CCG,31/12/2017,Clinical&Medical-Othe Public Sector,Mental Health Services - S117 Mental Health,BARNSLEY METROPOLITAN BOROUGH COUNCIL,20160517,"(34,898.76)"
Department of Health,NHS Barnsley CCG,31/12/2017,Clinical&Medical-Othe Public Sector,Mental Health Services - S117 Mental Health,BARNSLEY METROPOLITAN BOROUGH COUNCIL,20160521,"(46,768.10)"
Department of Health,NHS Barnsley CCG,31/12/2017,Clinical&Medical-Othe Public Sector,Learning Difficulties - S117,BARNSLEY METROPOLITAN BOROUGH COUNCIL,20160525,"(47,423.23)"
Department of Health,NHS Barnsley CCG,31/12/2017,Clinical&Medical-Othe Public Sector,Mental Health Services - S117 Mental Health,BARNSLEY METROPOLITAN BOROUGH COUNCIL,20160735,"33,602.09 "
Department of Health,NHS Barnsley CCG,31/12/2017,Clinical&Medical-Othe Public Sector,Learning Difficulties - S117,BARNSLEY METROPOLITAN BOROUGH COUNCIL,20160748,"39,173.58 "
Department of Health,NHS Barnsley CCG,31/12/2017,Clinical&Medical-Othe Public Sector,Learning Difficulties - S117,BARNSLEY METROPOLITAN BOROUGH COUNCIL,20160751,"38,557.92 "
Department of Health,NHS Barnsley CCG,31/12/2017,Clinical&Medical-Othe Public Sector,Mental Health Services - S117 Mental Health,BARNSLEY METROPOLITAN BOROUGH COUNCIL,20161756,"29,947.68 "
Department of Health,NHS Barnsley CCG,31/12/2017,Clinical&Medical-Othe Public Sector,Mental Health Services - S117 Mental Health,BARNSLEY METROPOLITAN BOROUGH COUNCIL,20161767,"39,926.15 "
Department of Health,NHS Barnsley CCG,31/12/2017,Clinical&Medical-Othe Public Sector,Learning Difficulties - S117,BARNSLEY METROPOLITAN BOROUGH COUNCIL,20161768,"37,873.08 "
Department of Health,NHS Barnsley CCG,31/12/2017,Clinical&Medical-Othe Public Sector,Learning Difficulties - S117,BARNSLEY METROPOLITAN BOROUGH COUNCIL,20161775,"40,475.71 "
Department of Health,NHS Barnsley CCG,31/12/2017,Clinical&Medical-Othe Public Sector,Mental Health Services - S117 Mental Health,BARNSLEY METROPOLITAN BOROUGH COUNCIL,20161804,"36,953.28 "
Department of Health,NHS Barnsley CCG,31/12/2017,Clinical&Medical-Othe Public Sector,Learning Difficulties - S117,BARNSLEY METROPOLITAN BOROUGH COUNCIL,20161811,"71,622.72 "
Department of Health,NHS Barnsley CCG,31/12/2017,Clinical&Medical-Othe Public Sector,Learning Difficulties - S117,BARNSLEY METROPOLITAN BOROUGH COUNCIL,20161814,"74,662.77 "
Department of Health,NHS Barnsley CCG,31/12/2017,Clinical&Medical-Othe Public Sector,Learning Difficulties - S117,BARNSLEY METROPOLITAN BOROUGH COUNCIL,20161817,"73,214.31 "
Department of Health,NHS Barnsley CCG,31/12/2017,Clinical&Medical-Othe Public Sector,Mental Health Services - S117 Mental Health,BARNSLEY METROPOLITAN BOROUGH COUNCIL,20161819,"69,797.52 "
Department of Health,NHS Barnsley CCG,31/12/2017,Clinical&Medical-Othe Public Sector,Mental Health Services - S117 Mental Health,BARNSLEY METROPOLITAN BOROUGH COUNCIL,20161823,"76,656.45 "
Department of Health,NHS Barnsley CCG,31/12/2017,Clinical&Medical-Othe Public Sector,Learning Difficulties - S117,BARNSLEY METROPOLITAN BOROUGH COUNCIL,20161824,"77,973.09 "
Department of Health,NHS Barnsley CCG,31/12/2017,Cont Care- Prior Year Payments,CHC ADULT FULLY FUNDED,BURLINGTON CARE T/A CHERRY TREE,19940663,"10,019.82 "
Department of Health,NHS Barnsley CCG,31/12/2017,Cont Care-Physical Disab (65+),CHC ADULT FULLY FUNDED,BURLINGTON CARE T/A CHERRY TREE,19940663,"15,907.61 "
Department of Health,NHS Barnsley CCG,31/12/2017,Clinical&Medical-Commercial Sector,ACUTE COMMISSIONING,CLAREMONT HOSPITAL,19992099,"54,938.00 "
Department of Health,NHS Barnsley CCG,31/12/2017,Voids and Subsidies,RECHARGES NHS PROPERTY SERVICES LTD,COMMUNITY HEALTH PARTNERSHIPS LTD,20164974,"52,951.27 "
Department of Health,NHS Barnsley CCG,31/12/2017,Voids and Subsidies,RECHARGES NHS PROPERTY SERVICES LTD,COMMUNITY HEALTH PARTNERSHIPS LTD,20165006,"52,951.27 "
Department of Health,NHS Barnsley CCG,31/12/2017,C&M-GMS Global Sum,PRC DELEGATED CO-COMMISSIONING,NHS BARNSLEY CCG GP PRACTICE,20194843,"78,409.42 "
Department of Health,NHS Barnsley CCG,31/12/2017,C&M-GMS PCO Seniority,PRC DELEGATED CO-COMMISSIONING,NHS BARNSLEY CCG GP PRACTICE,20194843,526.62 
Department of Health,NHS Barnsley CCG,31/12/2017,C&M-GMS Prem Healthcentre Rent,PRC DELEGATED CO-COMMISSIONING,NHS BARNSLEY CCG GP PRACTICE,20194843,"25,297.00 "
Department of Health,NHS Barnsley CCG,31/12/2017,C&M-GMS QOF Aspiration,PRC DELEGATED CO-COMMISSIONING,NHS BARNSLEY CCG GP PRACTICE,20194843,"7,839.58 "
Department of Health,NHS Barnsley CCG,31/12/2017,C&M-PMS Contract Value,PRC DELEGATED CO-COMMISSIONING,NHS BARNSLEY CCG GP PRACTICE,20016632,"48,259.80 "
Department of Health,NHS Barnsley CCG,31/12/2017,C&M-PMS Out of Hours Opt Outs,PRC DELEGATED CO-COMMISSIONING,NHS BARNSLEY CCG GP PRACTICE,20016632,248.86 
Department of Health,NHS Barnsley CCG,31/12/2017,C&M-PMS PCO Seniority,PRC DELEGATED CO-COMMISSIONING,NHS BARNSLEY CCG GP PRACTICE,20016632,164.51 
Department of Health,NHS Barnsley CCG,31/12/2017,C&M-PMS Prem Rates,PRC DELEGATED CO-COMMISSIONING,NHS BARNSLEY CCG GP PRACTICE,20016632,"2,182.00 "
Department of Health,NHS Barnsley CCG,31/12/2017,C&M-PMS Prem Water Rates,PRC DELEGATED CO-COMMISSIONING,NHS BARNSLEY CCG GP PRACTICE,20016632,"1,958.08 "
Department of Health,NHS Barnsley CCG,31/12/2017,C&M-PMS QOF Aspiration,PRC DELEGATED CO-COMMISSIONING,NHS BARNSLEY CCG GP PRACTICE,20016632,"5,260.11 "
Department of Health,NHS Barnsley CCG,30/11/2017,Hcare Srv Rec Fdtn Trust-CQUIN,ACUTE COMMISSIONING,DONCASTER AND BASSETLAW HOSPITALS NHS FOUNDATION TRUST,19880438,"5,213.37 "
Department of Health,NHS Barnsley CCG,30/11/2017,Hcare Srv Rec Fdtn Trust-Contract Baseline,ACUTE COMMISSIONING,DONCASTER AND BASSETLAW HOSPITALS NHS FOUNDATION TRUST,19880438,"513,324.96 "
Department of Health,NHS Barnsley CCG,31/12/2017,C&M-PMS Contract Value,PRC DELEGATED CO-COMMISSIONING,NHS BARNSLEY CCG GP PRACTICE,20016603,"88,976.24 "
Department of Health,NHS Barnsley CCG,31/12/2017,C&M-PMS DES Extended Hours Access,PRC DELEGATED CO-COMMISSIONING,NHS BARNSLEY CCG GP PRACTICE,20016603,"5,095.80 "
Department of Health,NHS Barnsley CCG,31/12/2017,C&M-PMS Out of Hours Opt Outs,PRC DELEGATED CO-COMMISSIONING,NHS BARNSLEY CCG GP PRACTICE,20016603,48.89 
Department of Health,NHS Barnsley CCG,31/12/2017,C&M-PMS PCO Seniority,PRC DELEGATED CO-COMMISSIONING,NHS BARNSLEY CCG GP PRACTICE,20016603,"1,128.92 "
Department of Health,NHS Barnsley CCG,31/12/2017,C&M-PMS Prem Healthcentre Rent,PRC DELEGATED CO-COMMISSIONING,NHS BARNSLEY CCG GP PRACTICE,20016603,"20,733.65 "
Department of Health,NHS Barnsley CCG,31/12/2017,C&M-PMS Prem Notional Rent,PRC DELEGATED CO-COMMISSIONING,NHS BARNSLEY CCG GP PRACTICE,20016603,"2,604.16 "
Department of Health,NHS Barnsley CCG,31/12/2017,C&M-PMS Prem Rates,PRC DELEGATED CO-COMMISSIONING,NHS BARNSLEY CCG GP PRACTICE,20016603,289.00 
Department of Health,NHS Barnsley CCG,31/12/2017,C&M-PMS Prem Water Rates,PRC DELEGATED CO-COMMISSIONING,NHS BARNSLEY CCG GP PRACTICE,20016603,317.93 
Department of Health,NHS Barnsley CCG,31/12/2017,C&M-PMS QOF Aspiration,PRC DELEGATED CO-COMMISSIONING,NHS BARNSLEY CCG GP PRACTICE,20016603,"10,231.70 "
Department of Health,NHS Barnsley CCG,31/12/2017,C&M-PMS Contract Value,PRC DELEGATED CO-COMMISSIONING,NHS BARNSLEY CCG GP PRACTICE,20016607,"51,026.64 "
Department of Health,NHS Barnsley CCG,31/12/2017,C&M-PMS DES Extended Hours Access,PRC DELEGATED CO-COMMISSIONING,NHS BARNSLEY CCG GP PRACTICE,20016607,"3,207.68 "
Department of Health,NHS Barnsley CCG,31/12/2017,C&M-PMS DES Learn Dsblty Hlth Chk,PRC DELEGATED CO-COMMISSIONING,NHS BARNSLEY CCG GP PRACTICE,20016607,700.00 
Department of Health,NHS Barnsley CCG,31/12/2017,C&M-PMS Out of Hours Opt Outs,PRC DELEGATED CO-COMMISSIONING,NHS BARNSLEY CCG GP PRACTICE,20016607,1.33 
Department of Health,NHS Barnsley CCG,31/12/2017,C&M-PMS PCO Locum Adop/Pat/Mat,PRC DELEGATED CO-COMMISSIONING,NHS BARNSLEY CCG GP PRACTICE,20016607,"7,080.34 "
Department of Health,NHS Barnsley CCG,31/12/2017,C&M-PMS PCO Seniority,PRC DELEGATED CO-COMMISSIONING,NHS BARNSLEY CCG GP PRACTICE,20016607,"2,524.44 "
Department of Health,NHS Barnsley CCG,31/12/2017,C&M-PMS Prem Healthcentre Rent,PRC DELEGATED CO-COMMISSIONING,NHS BARNSLEY CCG GP PRACTICE,20016607,"21,557.02 "
Department of Health,NHS Barnsley CCG,31/12/2017,C&M-PMS QOF Aspiration,PRC DELEGATED CO-COMMISSIONING,NHS BARNSLEY CCG GP PRACTICE,20016607,"5,374.86 "
Department of Health,NHS Barnsley CCG,31/12/2017,C&M-GMS DES Extended Hours Access,PRC DELEGATED CO-COMMISSIONING,NHS BARNSLEY CCG GP PRACTICE,20194845,"4,643.13 "
Department of Health,NHS Barnsley CCG,31/12/2017,C&M-GMS DES Learn Dsblty Hlth Chk,PRC DELEGATED CO-COMMISSIONING,NHS BARNSLEY CCG GP PRACTICE,20194845,140.00 
Department of Health,NHS Barnsley CCG,31/12/2017,C&M-GMS Global Sum,PRC DELEGATED CO-COMMISSIONING,NHS BARNSLEY CCG GP PRACTICE,20194845,"71,316.80 "
Department of Health,NHS Barnsley CCG,31/12/2017,C&M-GMS PCO Other,PRC DELEGATED CO-COMMISSIONING,NHS BARNSLEY CCG GP PRACTICE,20194845,452.60 
Department of Health,NHS Barnsley CCG,31/12/2017,C&M-GMS PCO Seniority,PRC DELEGATED CO-COMMISSIONING,NHS BARNSLEY CCG GP PRACTICE,20194845,"3,745.73 "
Department of Health,NHS Barnsley CCG,31/12/2017,C&M-GMS Prem Notional Rent,PRC DELEGATED CO-COMMISSIONING,NHS BARNSLEY CCG GP PRACTICE,20194845,"4,558.08 "
Department of Health,NHS Barnsley CCG,31/12/2017,C&M-GMS Prem Rates,PRC DELEGATED CO-COMMISSIONING,NHS BARNSLEY CCG GP PRACTICE,20194845,"7,695.09 "
Department of Health,NHS Barnsley CCG,31/12/2017,C&M-GMS QOF Aspiration,PRC DELEGATED CO-COMMISSIONING,NHS BARNSLEY CCG GP PRACTICE,20194845,"8,873.87 "
Department of Health,NHS Barnsley CCG,31/12/2017,C&M-GMS DES Extended Hours Access,PRC DELEGATED CO-COMMISSIONING,NHS BARNSLEY CCG GP PRACTICE,20194847,"5,287.70 "
Department of Health,NHS Barnsley CCG,31/12/2017,C&M-GMS Global Sum,PRC DELEGATED CO-COMMISSIONING,NHS BARNSLEY CCG GP PRACTICE,20194847,"88,575.47 "
Department of Health,NHS Barnsley CCG,31/12/2017,C&M-GMS PCO Seniority,PRC DELEGATED CO-COMMISSIONING,NHS BARNSLEY CCG GP PRACTICE,20194847,"1,999.35 "
Department of Health,NHS Barnsley CCG,31/12/2017,C&M-GMS Prem Healthcentre Rent,PRC DELEGATED CO-COMMISSIONING,NHS BARNSLEY CCG GP PRACTICE,20194847,"3,289.55 "
Department of Health,NHS Barnsley CCG,31/12/2017,C&M-GMS Prem Notional Rent,PRC DELEGATED CO-COMMISSIONING,NHS BARNSLEY CCG GP PRACTICE,20194847,"1,572.92 "
Department of Health,NHS Barnsley CCG,31/12/2017,C&M-GMS Prem Rates,PRC DELEGATED CO-COMMISSIONING,NHS BARNSLEY CCG GP PRACTICE,20194847,"1,209.00 "
Department of Health,NHS Barnsley CCG,31/12/2017,C&M-GMS Prem Water Rates,PRC DELEGATED CO-COMMISSIONING,NHS BARNSLEY CCG GP PRACTICE,20194847,184.61 
Department of Health,NHS Barnsley CCG,31/12/2017,C&M-GMS QOF Aspiration,PRC DELEGATED CO-COMMISSIONING,NHS BARNSLEY CCG GP PRACTICE,20194847,"8,682.82 "
Department of Health,NHS Barnsley CCG,31/12/2017,C&M-PMS GP Statutory Levy,PRC DELEGATED CO-COMMISSIONING,NHS BARNSLEY CCG GP PRACTICE,20016610,(566.18)
Department of Health,NHS Barnsley CCG,31/12/2017,C&M-PMS Out of Hours Opt Outs,PRC DELEGATED CO-COMMISSIONING,NHS BARNSLEY CCG GP PRACTICE,20016610,"(6,106.76)"
Department of Health,NHS Barnsley CCG,31/12/2017,C&M-PMS Voluntary Levy,PRC DELEGATED CO-COMMISSIONING,NHS BARNSLEY CCG GP PRACTICE,20016610,(99.03)
Department of Health,NHS Barnsley CCG,31/12/2017,ME - PMS TPS Added Years Adj EEs,PRC DELEGATED CO-COMMISSIONING,NHS BARNSLEY CCG GP PRACTICE,20016610,(610.96)
Department of Health,NHS Barnsley CCG,31/12/2017,ME-PMS GP Pension EEs-PMS,PRC DELEGATED CO-COMMISSIONING,NHS BARNSLEY CCG GP PRACTICE,20016610,"(16,085.90)"
Department of Health,NHS Barnsley CCG,31/12/2017,ME-PMS GP Pension ERs Adjs - PMS,PRC DELEGATED CO-COMMISSIONING,NHS BARNSLEY CCG GP PRACTICE,20016610,"(17,366.39)"
Department of Health,NHS Barnsley CCG,31/12/2017,C&M-PMS Contract Value,PRC DELEGATED CO-COMMISSIONING,NHS BARNSLEY CCG GP PRACTICE,20016611,"128,969.01 "
Department of Health,NHS Barnsley CCG,31/12/2017,C&M-PMS DES Extended Hours Access,PRC DELEGATED CO-COMMISSIONING,NHS BARNSLEY CCG GP PRACTICE,20016611,"7,974.30 "
Department of Health,NHS Barnsley CCG,31/12/2017,C&M-PMS DES Learn Dsblty Hlth Chk,PRC DELEGATED CO-COMMISSIONING,NHS BARNSLEY CCG GP PRACTICE,20016611,"1,120.00 "
Department of Health,NHS Barnsley CCG,31/12/2017,C&M-PMS Funding Differential Review,PRC DELEGATED CO-COMMISSIONING,NHS BARNSLEY CCG GP PRACTICE,20016611,94.00 
Department of Health,NHS Barnsley CCG,31/12/2017,C&M-PMS PCO Locum Adop/Pat/Mat,PRC DELEGATED CO-COMMISSIONING,NHS BARNSLEY CCG GP PRACTICE,20016611,"14,029.02 "
Department of Health,NHS Barnsley CCG,31/12/2017,C&M-PMS PCO Seniority,PRC DELEGATED CO-COMMISSIONING,NHS BARNSLEY CCG GP PRACTICE,20016611,"3,608.49 "
Department of Health,NHS Barnsley CCG,31/12/2017,C&M-PMS Prem Notional Rent,PRC DELEGATED CO-COMMISSIONING,NHS BARNSLEY CCG GP PRACTICE,20016611,"6,333.33 "
Department of Health,NHS Barnsley CCG,31/12/2017,C&M-PMS Prem Rates,PRC DELEGATED CO-COMMISSIONING,NHS BARNSLEY CCG GP PRACTICE,20016611,"1,659.20 "
Department of Health,NHS Barnsley CCG,31/12/2017,C&M-PMS QOF Aspiration,PRC DELEGATED CO-COMMISSIONING,NHS BARNSLEY CCG GP PRACTICE,20016611,"14,324.80 "
Department of Health,NHS Barnsley CCG,31/12/2017,ME-PMS GP Prior Year EEs,PRC DELEGATED CO-COMMISSIONING,NHS BARNSLEY CCG GP PRACTICE,20016611,"1,394.93 "
Department of Health,NHS Barnsley CCG,31/12/2017,C&M-PMS Cost of Drugs -Dispensing,LOCAL ENHANCED SERVICES,NHS BARNSLEY CCG GP PRACTICE,20222189,"(90,219.64)"
Department of Health,NHS Barnsley CCG,31/12/2017,C&M-PMS Prsc Chrgs Cll&Rmttd by GPs,PRC DELEGATED CO-COMMISSIONING,NHS BARNSLEY CCG GP PRACTICE,20222189,"(5,289.00)"
Department of Health,NHS Barnsley CCG,31/12/2017,C&M-PMS Cost of Drugs -Dispensing,LOCAL ENHANCED SERVICES,NHS BARNSLEY CCG GP PRACTICE,20222190,"157,625.21 "
Department of Health,NHS Barnsley CCG,31/12/2017,C&M-PMS Prof fees Dispensing,PRC DELEGATED CO-COMMISSIONING,NHS BARNSLEY CCG GP PRACTICE,20222190,"28,375.34 "
Department of Health,NHS Barnsley CCG,31/12/2017,C&M-PMS Prsc Chrgs Cll&Rmttd by GPs,LOCAL ENHANCED SERVICES,NHS BARNSLEY CCG GP PRACTICE,20222190,"5,289.00 "
Department of Health,NHS Barnsley CCG,31/12/2017,C&M-GMS DES Learn Dsblty Hlth Chk,PRC DELEGATED CO-COMMISSIONING,NHS BARNSLEY CCG GP PRACTICE,20197931,140.00 
Department of Health,NHS Barnsley CCG,31/12/2017,C&M-GMS Global Sum,PRC DELEGATED CO-COMMISSIONING,NHS BARNSLEY CCG GP PRACTICE,20197931,"20,753.39 "
Department of Health,NHS Barnsley CCG,31/12/2017,C&M-GMS MPIG Correction Factor,PRC DELEGATED CO-COMMISSIONING,NHS BARNSLEY CCG GP PRACTICE,20197931,607.19 
Department of Health,NHS Barnsley CCG,31/12/2017,C&M-GMS PCO Seniority,PRC DELEGATED CO-COMMISSIONING,NHS BARNSLEY CCG GP PRACTICE,20197931,848.05 
Department of Health,NHS Barnsley CCG,31/12/2017,C&M-GMS Prem Healthcentre Rent,PRC DELEGATED CO-COMMISSIONING,NHS BARNSLEY CCG GP PRACTICE,20197931,"2,198.57 "
Department of Health,NHS Barnsley CCG,31/12/2017,C&M-GMS QOF Aspiration,PRC DELEGATED CO-COMMISSIONING,NHS BARNSLEY CCG GP PRACTICE,20197931,"2,409.31 "
Department of Health,NHS Barnsley CCG,31/12/2017,C&M-GMS DES Extended Hours Access,PRC DELEGATED CO-COMMISSIONING,NHS BARNSLEY CCG GP PRACTICE,20194849,"2,352.68 "
Department of Health,NHS Barnsley CCG,31/12/2017,C&M-GMS DES Minor Surgery,PRC DELEGATED CO-COMMISSIONING,NHS BARNSLEY CCG GP PRACTICE,20194849,213.10 
Department of Health,NHS Barnsley CCG,31/12/2017,C&M-GMS Global Sum,PRC DELEGATED CO-COMMISSIONING,NHS BARNSLEY CCG GP PRACTICE,20194849,"38,671.29 "
Department of Health,NHS Barnsley CCG,31/12/2017,C&M-GMS PCO Seniority,PRC DELEGATED CO-COMMISSIONING,NHS BARNSLEY CCG GP PRACTICE,20194849,245.70 
Department of Health,NHS Barnsley CCG,31/12/2017,C&M-GMS Prem Notional Rent,PRC DELEGATED CO-COMMISSIONING,NHS BARNSLEY CCG GP PRACTICE,20194849,"1,562.50 "
Department of Health,NHS Barnsley CCG,31/12/2017,C&M-GMS Prem Rates,PRC DELEGATED CO-COMMISSIONING,NHS BARNSLEY CCG GP PRACTICE,20194849,"1,072.00 "
Department of Health,NHS Barnsley CCG,31/12/2017,C&M-GMS QOF Aspiration,PRC DELEGATED CO-COMMISSIONING,NHS BARNSLEY CCG GP PRACTICE,20194849,"4,292.81 "
Department of Health,NHS Barnsley CCG,31/12/2017,C&M-PMS Contract Value,PRC DELEGATED CO-COMMISSIONING,NHS BARNSLEY CCG GP PRACTICE,20016609,"39,273.48 "
Department of Health,NHS Barnsley CCG,31/12/2017,C&M-PMS DES Extended Hours Access,PRC DELEGATED CO-COMMISSIONING,NHS BARNSLEY CCG GP PRACTICE,20016609,"2,225.38 "
Department of Health,NHS Barnsley CCG,31/12/2017,C&M-PMS Funding Differential Review,PRC DELEGATED CO-COMMISSIONING,NHS BARNSLEY CCG GP PRACTICE,20016609,"2,537.08 "
Department of Health,NHS Barnsley CCG,31/12/2017,C&M-PMS Out of Hours Opt Outs,PRC DELEGATED CO-COMMISSIONING,NHS BARNSLEY CCG GP PRACTICE,20016609,49.71 
Department of Health,NHS Barnsley CCG,31/12/2017,C&M-PMS PCO Seniority,PRC DELEGATED CO-COMMISSIONING,NHS BARNSLEY CCG GP PRACTICE,20016609,"3,775.65 "
Department of Health,NHS Barnsley CCG,31/12/2017,C&M-PMS Prem Healthcentre Rent,PRC DELEGATED CO-COMMISSIONING,NHS BARNSLEY CCG GP PRACTICE,20016609,"2,989.52 "
Department of Health,NHS Barnsley CCG,31/12/2017,C&M-PMS Prem Notional Rent,PRC DELEGATED CO-COMMISSIONING,NHS BARNSLEY CCG GP PRACTICE,20016609,"8,600.00 "
Department of Health,NHS Barnsley CCG,31/12/2017,C&M-PMS Prem Rates,PRC DELEGATED CO-COMMISSIONING,NHS BARNSLEY CCG GP PRACTICE,20016609,"1,030.00 "
Department of Health,NHS Barnsley CCG,31/12/2017,C&M-PMS Prem Water Rates,PRC DELEGATED CO-COMMISSIONING,NHS BARNSLEY CCG GP PRACTICE,20016609,200.45 
Department of Health,NHS Barnsley CCG,31/12/2017,C&M-PMS QOF Aspiration,PRC DELEGATED CO-COMMISSIONING,NHS BARNSLEY CCG GP PRACTICE,20016609,"2,711.68 "
Department of Health,NHS Barnsley CCG,31/12/2017,C&M-GMS DES Extended Hours Access,PRC DELEGATED CO-COMMISSIONING,NHS BARNSLEY CCG GP PRACTICE,20194854,"6,347.43 "
Department of Health,NHS Barnsley CCG,31/12/2017,C&M-GMS DES Learn Dsblty Hlth Chk,PRC DELEGATED CO-COMMISSIONING,NHS BARNSLEY CCG GP PRACTICE,20194854,420.00 
Department of Health,NHS Barnsley CCG,31/12/2017,C&M-GMS Global Sum,PRC DELEGATED CO-COMMISSIONING,NHS BARNSLEY CCG GP PRACTICE,20194854,"103,010.78 "
Department of Health,NHS Barnsley CCG,31/12/2017,C&M-GMS PCO Seniority,PRC DELEGATED CO-COMMISSIONING,NHS BARNSLEY CCG GP PRACTICE,20194854,"6,836.57 "
Department of Health,NHS Barnsley CCG,31/12/2017,C&M-GMS Prem Notional Rent,PRC DELEGATED CO-COMMISSIONING,NHS BARNSLEY CCG GP PRACTICE,20194854,"6,333.33 "
Department of Health,NHS Barnsley CCG,31/12/2017,C&M-GMS Prem Rates,PRC DELEGATED CO-COMMISSIONING,NHS BARNSLEY CCG GP PRACTICE,20194854,"2,708.00 "
Department of Health,NHS Barnsley CCG,31/12/2017,C&M-GMS QOF Aspiration,PRC DELEGATED CO-COMMISSIONING,NHS BARNSLEY CCG GP PRACTICE,20194854,"11,180.37 "
Department of Health,NHS Barnsley CCG,31/12/2017,C&M-GMS Cost of Drugs -Dispensing,LOCAL ENHANCED SERVICES,NHS BARNSLEY CCG GP PRACTICE,20222194,"29,090.73 "
Department of Health,NHS Barnsley CCG,31/12/2017,C&M-GMS Prof Fees Dispensing,PRC DELEGATED CO-COMMISSIONING,NHS BARNSLEY CCG GP PRACTICE,20222194,"6,033.29 "
Department of Health,NHS Barnsley CCG,31/12/2017,C&M-GMS PrscrptnChrgsColl&RmttdbyGP,LOCAL ENHANCED SERVICES,NHS BARNSLEY CCG GP PRACTICE,20222194,120.40 
Department of Health,NHS Barnsley CCG,31/12/2017,C&M-GMS DES Extended Hours Access,PRC DELEGATED CO-COMMISSIONING,NHS BARNSLEY CCG GP PRACTICE,20194850,"5,644.43 "
Department of Health,NHS Barnsley CCG,31/12/2017,C&M-GMS DES Learn Dsblty Hlth Chk,PRC DELEGATED CO-COMMISSIONING,NHS BARNSLEY CCG GP PRACTICE,20194850,"1,540.00 "
Department of Health,NHS Barnsley CCG,31/12/2017,C&M-GMS Global Sum,PRC DELEGATED CO-COMMISSIONING,NHS BARNSLEY CCG GP PRACTICE,20194850,"96,423.42 "
Department of Health,NHS Barnsley CCG,31/12/2017,C&M-GMS PCO Seniority,PRC DELEGATED CO-COMMISSIONING,NHS BARNSLEY CCG GP PRACTICE,20194850,"1,717.41 "
Department of Health,NHS Barnsley CCG,31/12/2017,C&M-GMS Prem Notional Rent,PRC DELEGATED CO-COMMISSIONING,NHS BARNSLEY CCG GP PRACTICE,20194850,"13,500.00 "
Department of Health,NHS Barnsley CCG,31/12/2017,C&M-GMS Prem Rates,PRC DELEGATED CO-COMMISSIONING,NHS BARNSLEY CCG GP PRACTICE,20194850,"2,068.17 "
Department of Health,NHS Barnsley CCG,31/12/2017,C&M-GMS Prem Water Rates,PRC DELEGATED CO-COMMISSIONING,NHS BARNSLEY CCG GP PRACTICE,20194850,398.82 
Department of Health,NHS Barnsley CCG,31/12/2017,C&M-GMS QOF Aspiration,PRC DELEGATED CO-COMMISSIONING,NHS BARNSLEY CCG GP PRACTICE,20194850,"9,956.81 "
Department of Health,NHS Barnsley CCG,31/12/2017,C&M-GMS DES Extended Hours Access,PRC DELEGATED CO-COMMISSIONING,NHS BARNSLEY CCG GP PRACTICE,20194852,"5,167.05 "
Department of Health,NHS Barnsley CCG,31/12/2017,C&M-GMS DES Learn Dsblty Hlth Chk,PRC DELEGATED CO-COMMISSIONING,NHS BARNSLEY CCG GP PRACTICE,20194852,"1,680.00 "
Department of Health,NHS Barnsley CCG,31/12/2017,C&M-GMS Global Sum,PRC DELEGATED CO-COMMISSIONING,NHS BARNSLEY CCG GP PRACTICE,20194852,"90,088.59 "
Department of Health,NHS Barnsley CCG,31/12/2017,C&M-GMS PCO Seniority,PRC DELEGATED CO-COMMISSIONING,NHS BARNSLEY CCG GP PRACTICE,20194852,"3,438.86 "
Department of Health,NHS Barnsley CCG,31/12/2017,C&M-GMS Prem Healthcentre Rent,PRC DELEGATED CO-COMMISSIONING,NHS BARNSLEY CCG GP PRACTICE,20194852,"33,280.78 "
Department of Health,NHS Barnsley CCG,31/12/2017,C&M-GMS QOF Aspiration,PRC DELEGATED CO-COMMISSIONING,NHS BARNSLEY CCG GP PRACTICE,20194852,"9,868.55 "
Department of Health,NHS Barnsley CCG,31/12/2017,C&M-GMS Global Sum,PRC DELEGATED CO-COMMISSIONING,NHS BARNSLEY CCG GP PRACTICE,20194856,"77,112.68 "
Department of Health,NHS Barnsley CCG,31/12/2017,C&M-GMS PCO Seniority,PRC DELEGATED CO-COMMISSIONING,NHS BARNSLEY CCG GP PRACTICE,20194856,"1,559.70 "
Department of Health,NHS Barnsley CCG,31/12/2017,C&M-GMS Prem Rates,PRC DELEGATED CO-COMMISSIONING,NHS BARNSLEY CCG GP PRACTICE,20194856,"2,927.00 "
Department of Health,NHS Barnsley CCG,31/12/2017,C&M-GMS QOF Aspiration,PRC DELEGATED CO-COMMISSIONING,NHS BARNSLEY CCG GP PRACTICE,20194856,"10,562.04 "
Department of Health,NHS Barnsley CCG,31/12/2017,C&M-PMS Contract Value,PRC DELEGATED CO-COMMISSIONING,NHS BARNSLEY CCG GP PRACTICE,20016613,"(2,000.15)"
Department of Health,NHS Barnsley CCG,31/12/2017,C&M-PMS GP Statutory Levy,PRC DELEGATED CO-COMMISSIONING,NHS BARNSLEY CCG GP PRACTICE,20016613,(402.23)
Department of Health,NHS Barnsley CCG,31/12/2017,C&M-PMS Out of Hours Opt Outs,PRC DELEGATED CO-COMMISSIONING,NHS BARNSLEY CCG GP PRACTICE,20016613,"(6,760.94)"
Department of Health,NHS Barnsley CCG,31/12/2017,C&M-PMS Voluntary Levy,PRC DELEGATED CO-COMMISSIONING,NHS BARNSLEY CCG GP PRACTICE,20016613,(70.36)
Department of Health,NHS Barnsley CCG,31/12/2017,ME - PMS TPS Added Years Adj EEs,PRC DELEGATED CO-COMMISSIONING,NHS BARNSLEY CCG GP PRACTICE,20016613,(266.67)
Department of Health,NHS Barnsley CCG,31/12/2017,ME-PMS GP Pension EEs-PMS,PRC DELEGATED CO-COMMISSIONING,NHS BARNSLEY CCG GP PRACTICE,20016613,"(8,052.80)"
Department of Health,NHS Barnsley CCG,31/12/2017,ME-PMS GP Pension ERs Adjs - PMS,PRC DELEGATED CO-COMMISSIONING,NHS BARNSLEY CCG GP PRACTICE,20016613,"(8,852.85)"
Department of Health,NHS Barnsley CCG,31/12/2017,C&M-PMS Contract Value,PRC DELEGATED CO-COMMISSIONING,NHS BARNSLEY CCG GP PRACTICE,20016614,"138,371.63 "
Department of Health,NHS Barnsley CCG,31/12/2017,C&M-PMS DES Extended Hours Access,PRC DELEGATED CO-COMMISSIONING,NHS BARNSLEY CCG GP PRACTICE,20016614,"8,113.48 "
Department of Health,NHS Barnsley CCG,31/12/2017,C&M-PMS Funding Differential Review,PRC DELEGATED CO-COMMISSIONING,NHS BARNSLEY CCG GP PRACTICE,20016614,203.75 
Department of Health,NHS Barnsley CCG,31/12/2017,C&M-PMS Out of Hours Opt Outs,PRC DELEGATED CO-COMMISSIONING,NHS BARNSLEY CCG GP PRACTICE,20016614,98.99 
Department of Health,NHS Barnsley CCG,31/12/2017,C&M-PMS PCO Locum Adop/Pat/Mat,PRC DELEGATED CO-COMMISSIONING,NHS BARNSLEY CCG GP PRACTICE,20016614,"36,947.08 "
Department of Health,NHS Barnsley CCG,31/12/2017,C&M-PMS PCO Other,PRC DELEGATED CO-COMMISSIONING,NHS BARNSLEY CCG GP PRACTICE,20016614,523.70 
Department of Health,NHS Barnsley CCG,31/12/2017,C&M-PMS PCO Seniority,PRC DELEGATED CO-COMMISSIONING,NHS BARNSLEY CCG GP PRACTICE,20016614,"4,972.12 "
Department of Health,NHS Barnsley CCG,31/12/2017,C&M-PMS Prem Notional Rent,PRC DELEGATED CO-COMMISSIONING,NHS BARNSLEY CCG GP PRACTICE,20016614,"11,166.67 "
Department of Health,NHS Barnsley CCG,31/12/2017,C&M-PMS Prem Rates,PRC DELEGATED CO-COMMISSIONING,NHS BARNSLEY CCG GP PRACTICE,20016614,"13,434.55 "
Department of Health,NHS Barnsley CCG,31/12/2017,C&M-PMS QOF Aspiration,PRC DELEGATED CO-COMMISSIONING,NHS BARNSLEY CCG GP PRACTICE,20016614,"10,469.27 "
Department of Health,NHS Barnsley CCG,31/12/2017,C&M-PMS Cost of Drugs -Prescribing,LOCAL ENHANCED SERVICES,NHS BARNSLEY CCG GP PRACTICE,20222195,"27,185.76 "
Department of Health,NHS Barnsley CCG,31/12/2017,C&M-PMS Prof fees Prescribing,PRC DELEGATED CO-COMMISSIONING,NHS BARNSLEY CCG GP PRACTICE,20222195,"6,871.40 "
Department of Health,NHS Barnsley CCG,31/12/2017,C&M-PMS Contract Value,PRC DELEGATED CO-COMMISSIONING,NHS BARNSLEY CCG GP PRACTICE,20016616,"94,158.32 "
Department of Health,NHS Barnsley CCG,31/12/2017,C&M-PMS DES Extended Hours Access,PRC DELEGATED CO-COMMISSIONING,NHS BARNSLEY CCG GP PRACTICE,20016616,"5,395.05 "
Department of Health,NHS Barnsley CCG,31/12/2017,C&M-PMS DES Learn Dsblty Hlth Chk,PRC DELEGATED CO-COMMISSIONING,NHS BARNSLEY CCG GP PRACTICE,20016616,140.00 
Department of Health,NHS Barnsley CCG,31/12/2017,C&M-PMS PCO Other,PRC DELEGATED CO-COMMISSIONING,NHS BARNSLEY CCG GP PRACTICE,20016616,523.70 
Department of Health,NHS Barnsley CCG,31/12/2017,C&M-PMS PCO Seniority,PRC DELEGATED CO-COMMISSIONING,NHS BARNSLEY CCG GP PRACTICE,20016616,"1,471.57 "
Department of Health,NHS Barnsley CCG,31/12/2017,C&M-PMS Prem Actual Rent,PRC DELEGATED CO-COMMISSIONING,NHS BARNSLEY CCG GP PRACTICE,20016616,"12,708.33 "
Department of Health,NHS Barnsley CCG,31/12/2017,C&M-PMS Prem Rates,PRC DELEGATED CO-COMMISSIONING,NHS BARNSLEY CCG GP PRACTICE,20016616,"2,491.00 "
Department of Health,NHS Barnsley CCG,31/12/2017,C&M-PMS QOF Aspiration,PRC DELEGATED CO-COMMISSIONING,NHS BARNSLEY CCG GP PRACTICE,20016616,"10,713.50 "
Department of Health,NHS Barnsley CCG,31/12/2017,C&M-PMS Contract Value,PRC DELEGATED CO-COMMISSIONING,NHS BARNSLEY CCG GP PRACTICE,20016618,"83,989.21 "
Department of Health,NHS Barnsley CCG,31/12/2017,C&M-PMS DES Extended Hours Access,PRC DELEGATED CO-COMMISSIONING,NHS BARNSLEY CCG GP PRACTICE,20016618,"5,220.73 "
Department of Health,NHS Barnsley CCG,31/12/2017,C&M-PMS DES Learn Dsblty Hlth Chk,PRC DELEGATED CO-COMMISSIONING,NHS BARNSLEY CCG GP PRACTICE,20016618,700.00 
Department of Health,NHS Barnsley CCG,31/12/2017,C&M-PMS PCO Seniority,PRC DELEGATED CO-COMMISSIONING,NHS BARNSLEY CCG GP PRACTICE,20016618,"1,518.86 "
Department of Health,NHS Barnsley CCG,31/12/2017,C&M-PMS Prem Actual Rent,PRC DELEGATED CO-COMMISSIONING,NHS BARNSLEY CCG GP PRACTICE,20016618,"8,566.67 "
Department of Health,NHS Barnsley CCG,31/12/2017,C&M-PMS Prem Rates,PRC DELEGATED CO-COMMISSIONING,NHS BARNSLEY CCG GP PRACTICE,20016618,"13,978.91 "
Department of Health,NHS Barnsley CCG,31/12/2017,C&M-PMS QOF Aspiration,PRC DELEGATED CO-COMMISSIONING,NHS BARNSLEY CCG GP PRACTICE,20016618,"7,978.34 "
Department of Health,NHS Barnsley CCG,31/12/2017,C&M-GMS DES Extended Hours Access,PRC DELEGATED CO-COMMISSIONING,NHS BARNSLEY CCG GP PRACTICE,20194857,"3,218.60 "
Department of Health,NHS Barnsley CCG,31/12/2017,C&M-GMS DES Learn Dsblty Hlth Chk,PRC DELEGATED CO-COMMISSIONING,NHS BARNSLEY CCG GP PRACTICE,20194857,700.00 
Department of Health,NHS Barnsley CCG,31/12/2017,C&M-GMS DES Minor Surgery,PRC DELEGATED CO-COMMISSIONING,NHS BARNSLEY CCG GP PRACTICE,20194857,809.78 
Department of Health,NHS Barnsley CCG,31/12/2017,C&M-GMS Global Sum,PRC DELEGATED CO-COMMISSIONING,NHS BARNSLEY CCG GP PRACTICE,20194857,"55,266.53 "
Department of Health,NHS Barnsley CCG,31/12/2017,C&M-GMS PCO Seniority,PRC DELEGATED CO-COMMISSIONING,NHS BARNSLEY CCG GP PRACTICE,20194857,"3,049.96 "
Department of Health,NHS Barnsley CCG,31/12/2017,C&M-GMS Prem Healthcentre Rent,PRC DELEGATED CO-COMMISSIONING,NHS BARNSLEY CCG GP PRACTICE,20194857,"21,594.09 "
Department of Health,NHS Barnsley CCG,31/12/2017,C&M-GMS QOF Aspiration,PRC DELEGATED CO-COMMISSIONING,NHS BARNSLEY CCG GP PRACTICE,20194857,"6,288.65 "
Department of Health,NHS Barnsley CCG,31/12/2017,C&M-GMS GP Statutory Levy,PRC DELEGATED CO-COMMISSIONING,NHS BARNSLEY CCG GP PRACTICE,20216917,(226.84)
Department of Health,NHS Barnsley CCG,31/12/2017,C&M-GMS QOF Aspiration,PRC DELEGATED CO-COMMISSIONING,NHS BARNSLEY CCG GP PRACTICE,20216917,(659.69)
Department of Health,NHS Barnsley CCG,31/12/2017,C&M-GMS Voluntary Levy,PRC DELEGATED CO-COMMISSIONING,NHS BARNSLEY CCG GP PRACTICE,20216917,(39.68)
Department of Health,NHS Barnsley CCG,31/12/2017,ME - GMS GP Prior Year ERs,PRC DELEGATED CO-COMMISSIONING,NHS BARNSLEY CCG GP PRACTICE,20216917,"(3,622.68)"
Department of Health,NHS Barnsley CCG,31/12/2017,ME-GMS GP Pension EEs,PRC DELEGATED CO-COMMISSIONING,NHS BARNSLEY CCG GP PRACTICE,20216917,"(10,062.88)"
Department of Health,NHS Barnsley CCG,31/12/2017,ME-GMS GP Pension ERs Adjustments,PRC DELEGATED CO-COMMISSIONING,NHS BARNSLEY CCG GP PRACTICE,20216917,"(10,581.24)"
Department of Health,NHS Barnsley CCG,31/12/2017,ME-GMS GP Prior Year EEs,PRC DELEGATED CO-COMMISSIONING,NHS BARNSLEY CCG GP PRACTICE,20216917,"(3,384.00)"
Department of Health,NHS Barnsley CCG,31/12/2017,C&M-PMS Contract Value,PRC DELEGATED CO-COMMISSIONING,NHS BARNSLEY CCG GP PRACTICE,20016620,"99,023.49 "
Department of Health,NHS Barnsley CCG,31/12/2017,C&M-PMS DES Extended Hours Access,PRC DELEGATED CO-COMMISSIONING,NHS BARNSLEY CCG GP PRACTICE,20016620,"6,213.95 "
Department of Health,NHS Barnsley CCG,31/12/2017,C&M-PMS DES Learn Dsblty Hlth Chk,PRC DELEGATED CO-COMMISSIONING,NHS BARNSLEY CCG GP PRACTICE,20016620,280.00 
Department of Health,NHS Barnsley CCG,31/12/2017,C&M-PMS Out of Hours Opt Outs,PRC DELEGATED CO-COMMISSIONING,NHS BARNSLEY CCG GP PRACTICE,20016620,19.00 
Department of Health,NHS Barnsley CCG,31/12/2017,C&M-PMS PCO Seniority,PRC DELEGATED CO-COMMISSIONING,NHS BARNSLEY CCG GP PRACTICE,20016620,"5,192.49 "
Department of Health,NHS Barnsley CCG,31/12/2017,C&M-PMS Prem Rates,PRC DELEGATED CO-COMMISSIONING,NHS BARNSLEY CCG GP PRACTICE,20016620,"2,716.00 "
Department of Health,NHS Barnsley CCG,31/12/2017,C&M-PMS QOF Aspiration,PRC DELEGATED CO-COMMISSIONING,NHS BARNSLEY CCG GP PRACTICE,20016620,"12,214.31 "
Department of Health,NHS Barnsley CCG,31/12/2017,C&M-GMS Global Sum,PRC DELEGATED CO-COMMISSIONING,NHS BARNSLEY CCG GP PRACTICE,20194861,"45,925.63 "
Department of Health,NHS Barnsley CCG,31/12/2017,C&M-GMS PCO Seniority,PRC DELEGATED CO-COMMISSIONING,NHS BARNSLEY CCG GP PRACTICE,20194861,"3,254.98 "
Department of Health,NHS Barnsley CCG,31/12/2017,C&M-GMS Prem Notional Rent,PRC DELEGATED CO-COMMISSIONING,NHS BARNSLEY CCG GP PRACTICE,20194861,"2,541.67 "
Department of Health,NHS Barnsley CCG,31/12/2017,C&M-GMS Prem Rates,PRC DELEGATED CO-COMMISSIONING,NHS BARNSLEY CCG GP PRACTICE,20194861,454.00 
Department of Health,NHS Barnsley CCG,31/12/2017,C&M-GMS Prem Water Rates,PRC DELEGATED CO-COMMISSIONING,NHS BARNSLEY CCG GP PRACTICE,20194861,155.24 
Department of Health,NHS Barnsley CCG,31/12/2017,C&M-GMS QOF Aspiration,PRC DELEGATED CO-COMMISSIONING,NHS BARNSLEY CCG GP PRACTICE,20194861,"4,060.06 "
Department of Health,NHS Barnsley CCG,31/12/2017,Apprenticeship Levy Payable,BALANCE SHEET,HMRC,20049756,749.00 
Department of Health,NHS Barnsley CCG,31/12/2017,Income tax <1Yr,BALANCE SHEET,HMRC,20049756,"58,971.86 "
Department of Health,NHS Barnsley CCG,31/12/2017,Income tax <1Yr-Student Loans,BALANCE SHEET,HMRC,20049756,"1,817.00 "
Department of Health,NHS Barnsley CCG,31/12/2017,National Insurance < 1 yr-NI- ERS,BALANCE SHEET,HMRC,20049756,"42,343.43 "
Department of Health,NHS Barnsley CCG,31/12/2017,National Insurance < 1 yr-NI-EES,BALANCE SHEET,HMRC,20049756,"30,457.78 "
Department of Health,NHS Barnsley CCG,31/12/2017,C&M-GMS DES Extended Hours Access,PRC DELEGATED CO-COMMISSIONING,NHS BARNSLEY CCG GP PRACTICE,20194863,"5,578.40 "
Department of Health,NHS Barnsley CCG,31/12/2017,C&M-GMS DES Learn Dsblty Hlth Chk,PRC DELEGATED CO-COMMISSIONING,NHS BARNSLEY CCG GP PRACTICE,20194863,140.00 
Department of Health,NHS Barnsley CCG,31/12/2017,C&M-GMS Global Sum,PRC DELEGATED CO-COMMISSIONING,NHS BARNSLEY CCG GP PRACTICE,20194863,"83,413.14 "
Department of Health,NHS Barnsley CCG,31/12/2017,C&M-GMS PCO Seniority,PRC DELEGATED CO-COMMISSIONING,NHS BARNSLEY CCG GP PRACTICE,20194863,"4,978.54 "
Department of Health,NHS Barnsley CCG,31/12/2017,C&M-GMS Prem Healthcentre Rent,PRC DELEGATED CO-COMMISSIONING,NHS BARNSLEY CCG GP PRACTICE,20194863,"22,577.78 "
Department of Health,NHS Barnsley CCG,31/12/2017,C&M-GMS Prem Notional Rent,PRC DELEGATED CO-COMMISSIONING,NHS BARNSLEY CCG GP PRACTICE,20194863,"1,375.00 "
Department of Health,NHS Barnsley CCG,31/12/2017,C&M-GMS QOF Aspiration,PRC DELEGATED CO-COMMISSIONING,NHS BARNSLEY CCG GP PRACTICE,20194863,"9,650.40 "
Department of Health,NHS Barnsley CCG,31/12/2017,NHS Recbles <1Yr- CHC Risk Pool Con,BALANCE SHEET,HUGH JAMES INVOLEGAL LLP,19991877,"28,946.73 "
Department of Health,NHS Barnsley CCG,31/12/2017,C&M-PMS Contract Value,PRC DELEGATED CO-COMMISSIONING,NHS BARNSLEY CCG GP PRACTICE,20016622,"48,688.98 "
Department of Health,NHS Barnsley CCG,31/12/2017,C&M-PMS Funding Differential Review,PRC DELEGATED CO-COMMISSIONING,NHS BARNSLEY CCG GP PRACTICE,20016622,"1,500.83 "
Department of Health,NHS Barnsley CCG,31/12/2017,C&M-PMS PCO Seniority,PRC DELEGATED CO-COMMISSIONING,NHS BARNSLEY CCG GP PRACTICE,20016622,"2,154.83 "
Department of Health,NHS Barnsley CCG,31/12/2017,C&M-PMS Prem Healthcentre Rent,PRC DELEGATED CO-COMMISSIONING,NHS BARNSLEY CCG GP PRACTICE,20016622,"6,045.20 "
Department of Health,NHS Barnsley CCG,31/12/2017,C&M-PMS Prem Notional Rent,PRC DELEGATED CO-COMMISSIONING,NHS BARNSLEY CCG GP PRACTICE,20016622,"3,583.33 "
Department of Health,NHS Barnsley CCG,31/12/2017,C&M-PMS QOF Aspiration,PRC DELEGATED CO-COMMISSIONING,NHS BARNSLEY CCG GP PRACTICE,20016622,"4,640.02 "
Department of Health,NHS Barnsley CCG,31/12/2017,External Data Contracts,BUSINESS INFORMATICS,KIER BUSINESS SERVICES LTD,19956059,"14,111.00 "
Department of Health,NHS Barnsley CCG,31/12/2017,External Data Contracts,COMMISSIONING SCHEMES,KIER BUSINESS SERVICES LTD,19956059,"15,218.00 "
Department of Health,NHS Barnsley CCG,31/12/2017,Telecoms-Data lines,PRIMARY CARE IT,KIER BUSINESS SERVICES LTD,19956059,"49,324.00 "
Department of Health,NHS Barnsley CCG,31/12/2017,C&M-PMS Baseline Adjustment,PRC DELEGATED CO-COMMISSIONING,NHS BARNSLEY CCG GP PRACTICE,20021921,693.00 
Department of Health,NHS Barnsley CCG,31/12/2017,C&M-PMS Contract Value,PRC DELEGATED CO-COMMISSIONING,NHS BARNSLEY CCG GP PRACTICE,20021921,"26,772.74 "
Department of Health,NHS Barnsley CCG,31/12/2017,C&M-PMS PCO Seniority,PRC DELEGATED CO-COMMISSIONING,NHS BARNSLEY CCG GP PRACTICE,20021921,"2,001.83 "
Department of Health,NHS Barnsley CCG,31/12/2017,C&M-PMS Prem Notional Rent,PRC DELEGATED CO-COMMISSIONING,NHS BARNSLEY CCG GP PRACTICE,20021921,"5,059.14 "
Department of Health,NHS Barnsley CCG,31/12/2017,C&M-PMS Prem Rates,PRC DELEGATED CO-COMMISSIONING,NHS BARNSLEY CCG GP PRACTICE,20021921,875.00 
Department of Health,NHS Barnsley CCG,31/12/2017,C&M-PMS Prem Water Rates,PRC DELEGATED CO-COMMISSIONING,NHS BARNSLEY CCG GP PRACTICE,20021921,281.59 
Department of Health,NHS Barnsley CCG,31/12/2017,C&M-PMS QOF Aspiration,PRC DELEGATED CO-COMMISSIONING,NHS BARNSLEY CCG GP PRACTICE,20021921,"2,071.11 "
Department of Health,NHS Barnsley CCG,31/12/2017,C&M-PMS Cost of Drugs -Dispensing,LOCAL ENHANCED SERVICES,NHS BARNSLEY CCG GP PRACTICE,20222509,"33,850.59 "
Department of Health,NHS Barnsley CCG,31/12/2017,C&M-PMS Prof fees Dispensing,PRC DELEGATED CO-COMMISSIONING,NHS BARNSLEY CCG GP PRACTICE,20222509,"5,472.42 "
Department of Health,NHS Barnsley CCG,31/12/2017,C&M-PMS Prsc Chrgs Cll&Rmttd by GPs,LOCAL ENHANCED SERVICES,NHS BARNSLEY CCG GP PRACTICE,20222509,"1,522.20 "
Department of Health,NHS Barnsley CCG,31/12/2017,C&M-APMS Contract Value,PRC DELEGATED CO-COMMISSIONING,NHS BARNSLEY CCG GP PRACTICE,20016626,"18,856.62 "
Department of Health,NHS Barnsley CCG,31/12/2017,C&M-APMS OOH Opt Outs,PRC DELEGATED CO-COMMISSIONING,NHS BARNSLEY CCG GP PRACTICE,20016626,8.14 
Department of Health,NHS Barnsley CCG,31/12/2017,C&M-APMS Prem Healthcentre Rent,PRC DELEGATED CO-COMMISSIONING,NHS BARNSLEY CCG GP PRACTICE,20016626,"4,802.71 "
Department of Health,NHS Barnsley CCG,31/12/2017,C&M-PMS Prem Healthcentre Rent,PRC DELEGATED CO-COMMISSIONING,NHS BARNSLEY CCG GP PRACTICE,20016626,"4,756.91 "
Department of Health,NHS Barnsley CCG,31/12/2017,C&M-PMS QOF Aspiration,PRC DELEGATED CO-COMMISSIONING,NHS BARNSLEY CCG GP PRACTICE,20016626,"1,598.13 "
Department of Health,NHS Barnsley CCG,31/12/2017,Hcare Srv Rec NHS Trust-CQUIN,ACUTE COMMISSIONING,LEEDS TEACHING HOSPITALS NHS TRUST,20185103,"1,892.70 "
Department of Health,NHS Barnsley CCG,31/12/2017,Hcare Srv Rec NHS Trust-Contract Baseline,ACUTE COMMISSIONING,LEEDS TEACHING HOSPITALS NHS TRUST,20185103,"88,855.50 "
Department of Health,NHS Barnsley CCG,30/11/2017,Hcare Srv Rec NHS Trust-CQUIN,ACUTE COMMISSIONING,LEEDS TEACHING HOSPITALS NHS TRUST,19707157,"1,892.70 "
Department of Health,NHS Barnsley CCG,30/11/2017,Hcare Srv Rec NHS Trust-Contract Baseline,ACUTE COMMISSIONING,LEEDS TEACHING HOSPITALS NHS TRUST,19707157,"88,855.50 "
Department of Health,NHS Barnsley CCG,31/12/2017,Hcare Srv Rec NHS Trust-CQUIN,ACUTE COMMISSIONING,MID YORKSHIRE HOSPITALS NHS TRUST,19956050,"2,197.00 "
Department of Health,NHS Barnsley CCG,31/12/2017,Hcare Srv Rec NHS Trust-Contract Baseline,ACUTE COMMISSIONING,MID YORKSHIRE HOSPITALS NHS TRUST,19956050,"206,053.00 "
Department of Health,NHS Barnsley CCG,31/12/2017,Other Gen Supplies & Srv,CORPORATE COSTS & SERVICES,NHS SHEFFIELD CCG,20205628,"43,666.00 "
Department of Health,NHS Barnsley CCG,31/12/2017,Clinical&Medical-Commercial Sector,ACUTE COMMISSIONING,ONEHEALTH GROUP,20185111,"189,723.75 "
Department of Health,NHS Barnsley CCG,31/12/2017,Clinical&Medical-Commercial Sector,ACUTE COMMISSIONING,PAIN MANAGEMENT SOLUTIONS LTD,20069964,"28,943.78 "
Department of Health,NHS Barnsley CCG,31/12/2017,Other Gen Supplies & Srv,PATIENT TRANSPORT,PREMIER CARE DIRECT LTD,20051396,"28,557.10 "
Department of Health,NHS Barnsley CCG,31/12/2017,Hcare Srv Rec Fdtn Trust-CQUIN,MENTAL HEALTH CONTRACTS,ROTHERHAM DONCASTER & SOUTH HUMBER MENTAL HEALTH NHS FOUNDATION TRUST,19992011,425.50 
Department of Health,NHS Barnsley CCG,31/12/2017,Hcare Srv Rec Fdtn Trust-Contract Baseline,MENTAL HEALTH CONTRACTS,ROTHERHAM DONCASTER & SOUTH HUMBER MENTAL HEALTH NHS FOUNDATION TRUST,19992011,"34,043.08 "
Department of Health,NHS Barnsley CCG,30/11/2017,Hcare Srv Rec Fdtn Trust-Contract Cost per Case,MENTAL HEALTH SERVICES - NOT CONTRACTED ACTIVITY,ROTHERHAM DONCASTER & SOUTH HUMBER MENTAL HEALTH NHS FOUNDATION TRUST,19854297,"64,070.25 "
Department of Health,NHS Barnsley CCG,31/12/2017,Hcare Srv Rec Fdtn Trust-CQUIN,ACUTE COMMISSIONING,ROTHERHAM NHS FOUNDATION TRUST,19955998,"5,842.00 "
Department of Health,NHS Barnsley CCG,31/12/2017,Hcare Srv Rec Fdtn Trust-Contract Baseline,ACUTE COMMISSIONING,ROTHERHAM NHS FOUNDATION TRUST,19955998,"420,949.00 "
Department of Health,NHS Barnsley CCG,31/12/2017,Hcare Srv Rec Fdtn Trust-CQUIN,COMMUNITY SERVICES,ROTHERHAM NHS FOUNDATION TRUST,19955999,"1,020.00 "
Department of Health,NHS Barnsley CCG,31/12/2017,Hcare Srv Rec Fdtn Trust-Contract Baseline,COMMUNITY SERVICES,ROTHERHAM NHS FOUNDATION TRUST,19955999,"40,787.00 "
Department of Health,NHS Barnsley CCG,31/12/2017,C&M-GMS DES Extended Hours Access,PRC DELEGATED CO-COMMISSIONING,NHS BARNSLEY CCG GP PRACTICE,20197933,"3,830.88 "
Department of Health,NHS Barnsley CCG,31/12/2017,C&M-GMS Global Sum,PRC DELEGATED CO-COMMISSIONING,NHS BARNSLEY CCG GP PRACTICE,20197933,"59,582.08 "
Department of Health,NHS Barnsley CCG,31/12/2017,C&M-GMS PCO Seniority,PRC DELEGATED CO-COMMISSIONING,NHS BARNSLEY CCG GP PRACTICE,20197933,946.60 
Department of Health,NHS Barnsley CCG,31/12/2017,C&M-GMS Prem Actual Rent,PRC DELEGATED CO-COMMISSIONING,NHS BARNSLEY CCG GP PRACTICE,20197933,"8,873.23 "
Department of Health,NHS Barnsley CCG,31/12/2017,C&M-GMS Prem Rates,PRC DELEGATED CO-COMMISSIONING,NHS BARNSLEY CCG GP PRACTICE,20197933,"1,081.00 "
Department of Health,NHS Barnsley CCG,31/12/2017,C&M-GMS QOF Aspiration,PRC DELEGATED CO-COMMISSIONING,NHS BARNSLEY CCG GP PRACTICE,20197933,"7,778.41 "
Department of Health,NHS Barnsley CCG,31/12/2017,Hcare Srv Rec Fdtn Trust-CQUIN,ACUTE COMMISSIONING,SHEFFIELD CHILDRENS NHS FOUNDATION TRUST,20051325,991.38 
Department of Health,NHS Barnsley CCG,31/12/2017,Hcare Srv Rec Fdtn Trust-Contract Baseline,ACUTE COMMISSIONING,SHEFFIELD CHILDRENS NHS FOUNDATION TRUST,20051325,"(30,321.38)"
Department of Health,NHS Barnsley CCG,31/12/2017,Hcare Srv Rec Fdtn Trust-CQUIN,ACUTE COMMISSIONING,SHEFFIELD CHILDRENS NHS FOUNDATION TRUST,20069934,"1,615.00 "
Department of Health,NHS Barnsley CCG,31/12/2017,Hcare Srv Rec Fdtn Trust-Contract Baseline,ACUTE COMMISSIONING,SHEFFIELD CHILDRENS NHS FOUNDATION TRUST,20069934,"134,793.00 "
Department of Health,NHS Barnsley CCG,30/11/2017,Hcare Srv Rec Fdtn Trust-Contract Baseline,ACUTE COMMISSIONING,SHEFFIELD TEACHING HOSPITALS NHS FOUNDATION TRUST,19880498,"(123,347.00)"
Department of Health,NHS Barnsley CCG,30/11/2017,Hcare Srv Rec Fdtn Trust-Contract Baseline,ACUTE COMMISSIONING,SHEFFIELD TEACHING HOSPITALS NHS FOUNDATION TRUST,19880502,"174,257.00 "
Department of Health,NHS Barnsley CCG,30/11/2017,Hcare Srv Rec Fdtn Trust-Contract Baseline,ACUTE COMMISSIONING,SHEFFIELD TEACHING HOSPITALS NHS FOUNDATION TRUST,19880503,"1,852,829.00 "
Department of Health,NHS Barnsley CCG,31/12/2017,Hcare Srv Rec Fdtn Trust-CQUIN,COMMUNITY SERVICES,SOUTH WEST YORKSHIRE PARTNERSHIP NHS FOUNDATION TRUST,19992037,"21,494.00 "
Department of Health,NHS Barnsley CCG,31/12/2017,Hcare Srv Rec Fdtn Trust-CQUIN,LEARNING DIFFICULTIES,SOUTH WEST YORKSHIRE PARTNERSHIP NHS FOUNDATION TRUST,19992037,"2,013.00 "
Department of Health,NHS Barnsley CCG,31/12/2017,Hcare Srv Rec Fdtn Trust-CQUIN,MENTAL HEALTH SERVICES - ADULTS,SOUTH WEST YORKSHIRE PARTNERSHIP NHS FOUNDATION TRUST,19992037,"2,709.00 "
Department of Health,NHS Barnsley CCG,31/12/2017,Hcare Srv Rec Fdtn Trust-CQUIN,MENTAL HEALTH SERVICES - OLDER PEOPLE,SOUTH WEST YORKSHIRE PARTNERSHIP NHS FOUNDATION TRUST,19992037,"26,835.00 "
Department of Health,NHS Barnsley CCG,31/12/2017,Hcare Srv Rec Fdtn Trust-Contract Baseline,COMMUNITY SERVICES,SOUTH WEST YORKSHIRE PARTNERSHIP NHS FOUNDATION TRUST,19992037,"1,609,114.00 "
Department of Health,NHS Barnsley CCG,31/12/2017,Hcare Srv Rec Fdtn Trust-Contract Baseline,LEARNING DIFFICULTIES,SOUTH WEST YORKSHIRE PARTNERSHIP NHS FOUNDATION TRUST,19992037,"190,611.00 "
Department of Health,NHS Barnsley CCG,31/12/2017,Hcare Srv Rec Fdtn Trust-Contract Baseline,MENTAL HEALTH SERVICES - ADULTS,SOUTH WEST YORKSHIRE PARTNERSHIP NHS FOUNDATION TRUST,19992037,"216,736.00 "
Department of Health,NHS Barnsley CCG,31/12/2017,Hcare Srv Rec Fdtn Trust-Contract Baseline,MENTAL HEALTH SERVICES - OLDER PEOPLE,SOUTH WEST YORKSHIRE PARTNERSHIP NHS FOUNDATION TRUST,19992037,"2,146,829.00 "
Department of Health,NHS Barnsley CCG,30/11/2017,Clinical&Medical-Serv Recd-F Trsts,COMMUNITY SERVICES,SOUTH WEST YORKSHIRE PARTNERSHIP NHS FOUNDATION TRUST,19880532,"579,422.00 "
Department of Health,NHS Barnsley CCG,30/11/2017,Hlthcre-Foundation Trsts,COMMUNITY SERVICES,SOUTH WEST YORKSHIRE PARTNERSHIP NHS FOUNDATION TRUST,19880479,"586,546.00 "
Department of Health,NHS Barnsley CCG,30/11/2017,Clinical&Medical-Serv Recd-F Trsts,COMMUNITY SERVICES,SOUTH WEST YORKSHIRE PARTNERSHIP NHS FOUNDATION TRUST,19854298,"42,005.25 "
Department of Health,NHS Barnsley CCG,30/11/2017,Contr Other External,PROGRAMME PROJECTS,SOUTH WEST YORKSHIRE PARTNERSHIP NHS FOUNDATION TRUST,19880470,"88,630.76 "
Department of Health,NHS Barnsley CCG,31/12/2017,Clinical&Medical-Voluntary Sector,COMMUNITY SERVICES,SOUTH YORKSHIRE HOUSING ASSOCIATION LTD,20165043,"25,096.73 "
Department of Health,NHS Barnsley CCG,31/12/2017,C&M-PMS Contract Value,PRC DELEGATED CO-COMMISSIONING,NHS BARNSLEY CCG GP PRACTICE,20016624,"71,213.02 "
Department of Health,NHS Barnsley CCG,31/12/2017,C&M-PMS DES Minor Surgery,PRC DELEGATED CO-COMMISSIONING,NHS BARNSLEY CCG GP PRACTICE,20016624,"1,065.50 "
Department of Health,NHS Barnsley CCG,31/12/2017,C&M-PMS Out of Hours Opt Outs,PRC DELEGATED CO-COMMISSIONING,NHS BARNSLEY CCG GP PRACTICE,20016624,34.92 
Department of Health,NHS Barnsley CCG,31/12/2017,C&M-PMS PCO Seniority,PRC DELEGATED CO-COMMISSIONING,NHS BARNSLEY CCG GP PRACTICE,20016624,"2,584.51 "
Department of Health,NHS Barnsley CCG,31/12/2017,C&M-PMS Prem Actual Rent,PRC DELEGATED CO-COMMISSIONING,NHS BARNSLEY CCG GP PRACTICE,20016624,336.75 
Department of Health,NHS Barnsley CCG,31/12/2017,C&M-PMS Prem Healthcentre Rent,PRC DELEGATED CO-COMMISSIONING,NHS BARNSLEY CCG GP PRACTICE,20016624,"17,485.37 "
Department of Health,NHS Barnsley CCG,31/12/2017,C&M-PMS QOF Aspiration,PRC DELEGATED CO-COMMISSIONING,NHS BARNSLEY CCG GP PRACTICE,20016624,"6,823.95 "
Department of Health,NHS Barnsley CCG,31/12/2017,C&M-PMS Contract Value,PRC DELEGATED CO-COMMISSIONING,NHS BARNSLEY CCG GP PRACTICE,20021918,"40,734.42 "
Department of Health,NHS Barnsley CCG,31/12/2017,C&M-PMS DES Extended Hours Access,PRC DELEGATED CO-COMMISSIONING,NHS BARNSLEY CCG GP PRACTICE,20021918,"2,244.85 "
Department of Health,NHS Barnsley CCG,31/12/2017,C&M-PMS DES Learn Dsblty Hlth Chk,PRC DELEGATED CO-COMMISSIONING,NHS BARNSLEY CCG GP PRACTICE,20021918,"2,100.00 "
Department of Health,NHS Barnsley CCG,31/12/2017,C&M-PMS Prem Healthcentre Rent,PRC DELEGATED CO-COMMISSIONING,NHS BARNSLEY CCG GP PRACTICE,20021918,"1,189.84 "
Department of Health,NHS Barnsley CCG,31/12/2017,C&M-PMS Prem Rates,PRC DELEGATED CO-COMMISSIONING,NHS BARNSLEY CCG GP PRACTICE,20021918,"1,350.00 "
Department of Health,NHS Barnsley CCG,31/12/2017,C&M-PMS Prem Water Rates,PRC DELEGATED CO-COMMISSIONING,NHS BARNSLEY CCG GP PRACTICE,20021918,229.45 
Department of Health,NHS Barnsley CCG,31/12/2017,C&M-PMS QOF Aspiration,PRC DELEGATED CO-COMMISSIONING,NHS BARNSLEY CCG GP PRACTICE,20021918,"4,470.13 "
Department of Health,NHS Barnsley CCG,31/12/2017,Hcare Srv Rec NHS Trust-Contract Baseline,PATIENT TRANSPORT,YORKSHIRE AMBULANCE SERVICE NHS TRUST,19956032,"129,241.20 "
Department of Health,NHS Barnsley CCG,31/12/2017,Hcare Srv Rec NHS Trust-Contract Baseline,NHS 111,YORKSHIRE AMBULANCE SERVICE NHS TRUST,19956037,"49,017.33 "
Department of Health,NHS Barnsley CCG,31/12/2017,Hcare Srv Rec NHS Trust-Contract Baseline,AMBULANCE SERVICES,YORKSHIRE AMBULANCE SERVICE NHS TRUST,19956041,"627,034.00 "
,,,,,,,"25,946,774.24 "
